bitfinex/quotes_SOLUSD_20240811
["timestamp","ask_amount","ask_price","bid_price","bid_amount"]
[1723408202271,0.12549,145.46,145.43,4.8132]
[1723408202476,55.3305265,145.53,145.41,29.27440468]
[1723408202660,48.1432,145.53,145.41,29.27431018]
[1723408202861,27.9,145.51,145.46,4.812]
[1723408203065,15.9332,145.53,145.47,12.0292]
[1723408203066,43.3332,145.53,145.47,12.0292]
[1723408203266,4.8106,145.52,145.47,12.0292]
[1723408203585,4.8097,145.54,145.49,4.8112]
[1723408203766,4.8097,145.54,145.47,12.0292]
[1723408203767,27.9,145.53,145.47,12.0292]
[1723408204078,32.7114,145.49,145.44,16.8451]
[1723408204253,27.9,145.49,145.45,4.8126]
[1723408204589,0.5,145.48,145.45,4.8126]
[1723408204759,32.7107,145.51,145.46,4.8123]
[1723408205075,0.37647,145.5,145.46,4.8123]
[1723408205371,28.02549,145.49,145.44,12.0322]
[1723408205589,0.62549,145.48,145.44,12.0322]
[1723408205868,0.62549,145.48,145.4,22.1677]
[1723408205869,0.12549,145.46,145.41,12.0346]
[1723408206073,28.02549,145.47,145.41,12.0346]
[1723408206384,28.02549,145.47,145.42,4.8136]
[1723408206385,0.25098,145.46,145.42,4.8136]
[1723408206554,0.75098,145.46,145.42,4.8136]
[1723408207581,0.25098,145.46,145.42,4.8136]
[1723408207763,0.12549,145.46,145.41,12.0346]
[1723408208072,0.37647,145.46,145.43,4.8132]
[1723408209081,0.12549,145.48,145.44,4.8128]
[1723408209282,0.50196,145.48,145.44,4.8128]
[1723408210883,5.31366,145.48,145.42,4.8133]
[1723408211058,5.31366,145.48,145.38,12.0372]
[1723408211059,27.9,145.45,145.38,12.0372]
[1723408211380,4.8126,145.45,145.4,16.849]
[1723408211569,0.25098,145.46,145.4,16.849]
[1723408211755,0.25098,145.46,145.4,12.035]
[1723408211960,4.813,145.44,145.4,12.035]
[1723408212166,28.02549,145.45,145.4,12.035]
[1723408212483,28.02549,145.43,145.37,34.2059]
[1723408212681,27.9,145.41,145.37,12.0382]
[1723408212861,28.02549,145.39,145.34,12.0404]
[1723408213059,27.9,145.37,145.31,28.3481]
[1723408213261,27.9,145.37,145.33,4.8165]
[1723408213564,34.0047,145.41,145.34,12.0406]
[1723408213880,0.12549,145.4,145.34,12.0406]
[1723408214088,27.9,145.41,145.34,12.0406]
[1723408214293,5.19007,145.42,145.36,4.8155]
[1723408214461,0.25098,145.42,145.37,4.8152]
[1723408214662,0.25098,145.42,145.36,12.0384]
[1723408214967,0.75098,145.42,145.36,12.0384]
[1723408215169,5.06518,145.41,145.36,12.0384]
[1723408215369,0.12549,145.39,145.33,12.0415]
[1723408215558,28.65098,145.39,145.33,12.0415]
[1723408215761,28.65098,145.39,145.33,16.8581]
[1723408215762,0.12549,145.37,145.33,16.8581]
[1723408215958,28.65098,145.37,145.3,12.0438]
[1723408216265,0.25098,145.38,145.3,12.0438]
[1723408216578,5.06618,145.38,145.32,4.8169]
[1723408216786,4.8157,145.36,145.31,4.8169]
[1723408216970,0.50196,145.35,145.3,16.8613]
[1723408218073,28.40196,145.35,145.29,4.8179]
[1723408218268,28.90196,145.35,145.29,4.8179]
[1723408219071,0.12549,145.33,145.29,4.8179]
[1723408219362,5.81876,145.33,145.27,12.0463]
[1723408220385,4.8169,145.32,145.27,16.8647]
[1723408220559,27.9,145.29,145.27,12.0463]
[1723408220761,0.5,145.28,145.24,4.8192]
[1723408220995,0.5,145.28,145.23,12.0492]
[1723408221159,0.5,145.28,145.23,16.869]
[1723408221361,0.37647,145.27,145.23,12.0492]
[1723408221962,28.27647,145.27,145.2,4.8206]
[1723408222265,0.12549,145.25,145.21,4.8205]
[1723408222464,0.62549,145.25,145.21,4.8205]
[1723408222692,0.12549,145.27,145.22,12.0504]
[1723408222864,6.1047,145.3,145.25,4.8192]
[1723408223089,0.37647,145.29,145.25,4.8192]
[1723408223280,4.8169,145.32,145.26,4.8189]
[1723408223592,4.8166,145.34,145.25,12.0478]
[1723408223887,28.4,145.35,145.28,4.8182]
[1723408224065,4.8166,145.33,145.27,4.8185]
[1723408224397,27.9,145.35,145.25,27.9]
[1723408224683,21.7782,145.36,145.28,12.0453]
[1723408224887,4.8164,145.34,145.28,16.8635]
[1723408225095,21.7782,145.36,145.3,4.8175]
[1723408225260,408.9,145.37,145.25,27.9]
[1723408225261,381.0,145.37,145.31,12.043]
[1723408225461,4.8151,145.38,145.32,4.8169]
[1723408225679,0.5,145.37,145.31,12.043]
[1723408225875,4.8169,145.32,145.27,12.0458]
[1723408226103,0.5,145.34,145.27,12.0458]
[1723408226298,7.17692973,145.36,145.31,4.8172]
[1723408226481,32.7155,145.37,145.31,4.8172]
[1723408226681,32.7155,145.37,145.3,12.0438]
[1723408226682,0.12549,145.37,145.32,4.8169]
[1723408226877,4.8149,145.38,145.32,4.8169]
[1723408227082,4.813,145.44,145.38,4.8148]
[1723408227278,396.6735,145.45,145.33,22.7711]
[1723408227279,28.4,145.43,145.33,22.7711]
[1723408227485,27.7053,145.45,145.35,12.0397]
[1723408227486,0.5,145.44,145.35,12.0397]
[1723408227693,4.813,145.44,145.38,4.8149]
[1723408227998,15.6735,145.45,145.35,39.9397]
[1723408227999,15.6735,145.45,145.35,12.0397]
[1723408228205,27.9,145.44,145.35,12.0397]
[1723408228501,12.5335,145.43,145.33,4.8166]
[1723408228803,27.9,145.42,145.33,4.8166]
[1723408229014,27.9,145.42,145.34,4.8162]
[1723408229015,4.8143,145.4,145.34,4.8162]
[1723408229203,0.50196,145.39,145.35,4.8159]
[1723408229399,0.12549,145.41,145.36,4.8155]
[1723408229578,0.25098,145.41,145.36,4.8155]
[1723408229916,5.06498,145.41,145.34,16.8564]
[1723408230284,4.8144,145.4,145.34,16.8564]
[1723408230611,4.8146,145.39,145.34,12.0405]
[1723408230784,4.94009,145.39,145.34,12.0405]
[1723408230983,0.5,145.38,145.34,12.0405]
[1723408231285,4.94009,145.39,145.34,12.0405]
[1723408231483,0.12549,145.38,145.34,12.0405]
[1723408231794,0.12549,145.4,145.34,12.0405]
[1723408232106,0.25098,145.39,145.34,12.0405]
[1723408232304,0.25098,145.39,145.34,16.8567]
[1723408232517,0.25098,145.4,145.34,12.0405]
[1723408232813,0.12549,145.4,145.34,12.0405]
[1723408233407,0.12549,145.4,145.35,4.8158]
[1723408233785,0.12549,145.4,145.34,12.0405]
[1723408234108,27.9,145.42,145.31,34.3661]
[1723408234109,4.8123,145.46,145.37,39.9378]
[1723408234284,4.8119,145.47,145.42,4.8136]
[1723408234484,0.5,145.47,145.39,6.3381]
[1723408234699,27.9,145.48,145.39,6.3381]
[1723408235008,27.9,145.48,145.39,18.3746]
[1723408235212,0.5,145.47,145.39,23.1889]
[1723408235805,27.9,145.48,145.41,4.8136]
[1723408235806,4.8116,145.48,145.41,4.8136]
[1723408235994,0.5,145.47,145.41,4.8136]
[1723408236194,0.5,145.47,145.42,4.8134]
[1723408236400,4.8114,145.49,145.43,4.8132]
[1723408236782,4.811,145.5,145.44,4.8129]
[1723408236996,6.0848,145.51,145.42,12.0338]
[1723408236997,4.8108,145.51,145.45,4.8124]
[1723408237601,4.8108,145.51,145.46,4.8123]
[1723408237806,4.8108,145.51,145.45,4.8126]
[1723408238014,4.811,145.5,145.44,4.8129]
[1723408239812,4.93689,145.49,145.43,4.8132]
[1723408240029,0.62549,145.48,145.43,4.8132]
[1723408240517,0.12549,145.48,145.44,4.8129]
[1723408240710,0.12549,145.48,145.42,16.8471]
[1723408240914,4.8123,145.46,145.4,4.8143]
[1723408241219,0.5,145.45,145.4,4.8143]
[1723408241391,0.12549,145.45,145.39,11.1524]
[1723408241712,0.12549,145.45,145.4,4.8142]
[1723408241892,0.12549,145.45,145.41,4.8139]
[1723408242217,28.15098,145.48,145.42,4.8135]
[1723408242218,32.96258,145.48,145.42,4.8135]
[1723408242395,32.96258,145.48,145.43,4.8132]
[1723408242396,0.5,145.47,145.43,4.8132]
[1723408242605,0.12549,145.49,145.46,4.8123]
[1723408242794,4.8107,145.51,145.45,4.8126]
[1723408242993,27.9,145.5,145.4,12.035]
[1723408243192,27.9,145.48,145.4,12.035]
[1723408243404,28.4,145.48,145.41,4.8139]
[1723408243610,27.9,145.48,145.4,12.035]
[1723408243988,0.5,145.47,145.41,4.8139]
[1723408244191,0.5,145.47,145.4,12.035]
[1723408244192,4.8126,145.45,145.4,16.849]
[1723408244386,5.3126,145.45,145.4,12.035]
[1723408244590,0.25098,145.44,145.4,12.035]
[1723408244804,0.5,145.43,145.4,12.035]
[1723408245002,0.5,145.43,145.39,4.8144]
[1723408245499,0.5,145.43,145.38,4.8149]
[1723408246317,28.15098,145.44,145.37,12.0382]
[1723408246497,0.12549,145.46,145.39,12.0357]
[1723408246728,0.25098,145.47,145.37,27.9]
[1723408247023,0.25098,145.47,145.42,4.8136]
[1723408247314,0.12549,145.45,145.4,4.8142]
[1723408247702,0.5,145.45,145.4,4.8142]
[1723408248105,5.3127,145.45,145.39,4.8146]
[1723408248810,5.3127,145.45,145.4,4.8142]
[1723408249011,5.3127,145.45,145.38,12.0373]
[1723408249012,0.12549,145.43,145.38,16.8522]
[1723408249221,0.75098,145.43,145.38,12.0373]
[1723408249730,27.9,145.42,145.34,27.9255]
[1723408249945,27.9,145.42,145.31,6.2137]
[1723408249946,27.9,145.38,145.31,6.2137]
[1723408250217,27.9,145.36,145.31,4.8172]
[1723408250437,27.9,145.36,145.3,16.861]
[1723408250438,0.5,145.35,145.3,16.861]
[1723408250625,28.15098,145.34,145.28,4.818]
[1723408250825,28.02549,145.36,145.31,4.8172]
[1723408251130,28.02549,145.36,145.28,12.0449]
[1723408251131,1.00196,145.35,145.28,12.0449]
[1723408251293,27.9,145.34,145.28,12.0449]
[1723408252506,28.4,145.34,145.28,12.0449]
[1723408252825,0.12549,145.33,145.28,12.0449]
[1723408253023,0.25098,145.35,145.28,12.0449]
[1723408253242,0.12549,145.34,145.28,12.0449]
[1723408253633,27.9,145.38,145.31,12.0429]
[1723408253928,4.8159,145.35,145.29,4.8176]
[1723408254124,4.8163,145.34,145.29,4.8176]
[1723408254328,4.8166,145.33,145.28,12.0456]
[1723408254505,5.3166,145.33,145.28,12.0456]
[1723408254709,32.7163,145.34,145.28,16.8637]
[1723408254904,0.25098,145.33,145.28,16.8637]
[1723408255309,0.5,145.32,145.24,18.2619]
[1723408255605,0.12549,145.3,145.24,16.8675]
[1723408255805,4.8179,145.29,145.24,12.0482]
[1723408256097,28.65098,145.3,145.23,4.8199]
[1723408256098,5.44379,145.28,145.23,4.8199]
[1723408256308,5.44379,145.28,145.22,4.8202]
[1723408256553,0.12549,145.28,145.23,4.8198]
[1723408256949,0.25098,145.29,145.24,4.8194]
[1723408257230,0.12549,145.29,145.24,4.8194]
[1723408257626,4.94439,145.27,145.21,12.0514]
[1723408257802,0.75098,145.26,145.21,12.0514]
[1723408258807,0.12549,145.26,145.22,4.82]
[1723408259002,51.2765,145.31,145.21,12.0514]
[1723408259003,4.8178,145.3,145.21,12.0514]
[1723408259224,6.2765,145.31,145.22,27.9]
[1723408259433,6.2765,145.31,145.24,12.0485]
[1723408260107,15.8531,145.33,145.24,39.9485]
[1723408260426,5.3172,145.32,145.24,39.9485]
[1723408260626,4.8173,145.31,145.24,12.0485]
[1723408260834,4.8177,145.3,145.24,12.0485]
[1723408261015,4.8177,145.3,145.2,27.9]
[1723408261016,32.7178,145.3,145.2,27.9]
[1723408261216,32.7178,145.3,145.21,65.0]
[1723408261534,4.8178,145.3,145.22,27.9]
[1723408261717,0.25098,145.31,145.23,12.0497]
[1723408261913,0.62549,145.3,145.23,12.0497]
[1723408262137,0.25098,145.29,145.23,12.0497]
[1723408262645,0.12549,145.28,145.21,20.0]
[1723408262817,0.25098,145.28,145.22,4.8202]
[1723408263014,0.25098,145.29,145.24,4.8195]
[1723408263443,0.12549,145.29,145.24,4.8195]
[1723408263736,4.8179,145.29,145.24,4.8195]
[1723408263947,4.94279,145.31,145.25,4.8192]
[1723408264316,0.12549,145.3,145.25,4.8192]
[1723408264516,0.12549,145.32,145.25,12.0479]
[1723408264747,27.9,145.36,145.27,12.0457]
[1723408265039,4.817,145.32,145.27,12.0457]
[1723408265231,32.7166,145.34,145.27,12.0457]
[1723408265442,6.2765,145.35,145.27,12.0457]
[1723408265617,15.8531,145.37,145.31,4.8172]
[1723408265816,15.8531,145.37,145.3,12.044]
[1723408265817,4.8153,145.37,145.3,12.044]
[1723408266016,27.9,145.38,145.3,12.044]
[1723408266216,4.8154,145.37,145.31,4.8172]
[1723408266635,27.9,145.38,145.3,12.044]
[1723408266842,27.9,145.38,145.3,16.8616]
[1723408267026,0.12549,145.37,145.3,16.8616]
[1723408267727,4.8156,145.36,145.3,16.8616]
[1723408267957,32.7152,145.38,145.3,12.044]
[1723408268122,4.8152,145.38,145.3,39.944]
[1723408268329,4.8152,145.38,145.32,4.8169]
[1723408268653,6.2765,145.39,145.3,39.944]
[1723408269465,2.73911898,145.4,145.3,39.944]
[1723408269638,27.9,145.34,145.26,27.8822]
[1723408269832,27.9,145.38,145.24,4.8195]
[1723408269833,4.8176,145.3,145.24,4.8195]
[1723408270034,0.5,145.29,145.23,16.8695]
[1723408270349,4.8199,145.24,145.19,6.5554]
[1723408270654,4.8186,145.27,145.21,4.8205]
[1723408270953,4.8186,145.27,145.18,15.9958]
[1723408270954,4.8202,145.23,145.18,15.9958]
[1723408271158,4.8203,145.22,145.16,4.8222]
[1723408271458,28.02549,145.28,145.18,12.0538]
[1723408271749,4.8189,145.26,145.18,39.9538]
[1723408272133,0.12549,145.25,145.19,4.8212]
[1723408272323,0.25098,145.25,145.19,4.8212]
[1723408272538,28.15098,145.26,145.2,4.8208]
[1723408272725,28.15098,145.26,145.18,12.0538]
[1723408272726,4.8195,145.25,145.19,4.8212]
[1723408272926,0.25098,145.24,145.18,12.0538]
[1723408273364,0.25098,145.24,145.15,7.3845393]
[1723408273365,4.8202,145.22,145.15,7.3845393]
[1723408274139,4.8202,145.22,145.16,4.8222]
[1723408274461,0.62549,145.21,145.15,0.8291393]
[1723408274667,28.02549,145.2,145.15,0.8291393]
[1723408274827,4.8216,145.18,145.15,0.8291393]
[1723408275028,4.8215,145.19,145.15,0.8291393]
[1723408275252,27.9,145.18,145.15,0.8291393]
[1723408275443,32.7219,145.18,145.15,0.8291393]
[1723408275887,5.44739,145.17,145.15,0.8291393]
[1723408276168,27.9,145.18,145.15,0.8291393]
[1723408276169,0.12549,145.16,145.15,0.8291393]
[1723408276376,27.9,145.18,145.15,0.8291393]
[1723408276377,0.25098,145.17,145.15,0.8291393]
[1723408276689,4.8222,145.16,145.15,0.8291393]
[1723408276982,0.12549,145.17,145.15,0.8291393]
[1723408277189,20.0,145.29,145.15,0.8291393]
[1723408277190,32.7212,145.2,145.15,0.8291393]
[1723408277487,5.44689,145.19,145.15,0.8291393]
[1723408277980,4.8216,145.18,145.15,0.8291393]
[1723408278183,0.5,145.17,145.15,0.8291393]
[1723408278574,4.8216,145.18,145.15,0.8291393]
[1723408279658,0.5,145.17,145.15,0.8291393]
[1723408279884,32.97318,145.16,145.15,0.8291393]
[1723408280061,33.09867,145.16,145.15,0.8291393]
[1723408280378,32.7222,145.16,145.15,0.8291393]
[1723408280757,32.84769,145.16,145.15,0.8291393]
[1723408280973,33.09867,145.16,145.15,0.8291393]
[1723408281177,0.12549,145.14,145.05,12.0647]
[1723408281369,32.7242,145.1,145.05,12.0647]
[1723408281573,0.5,145.09,145.05,12.0647]
[1723408281789,5.3246,145.09,145.05,12.0647]
[1723408282160,0.5,145.09,145.05,16.8906]
[1723408282360,0.5,145.09,145.02,18.6225]
[1723408282691,9.35593176,145.17,145.01,0.8291393]
[1723408282692,34.167887,145.4,145.12,6.5554]
[1723408282886,11.91252276,145.44,145.37,27.9]
[1723408283063,11.91252276,145.44,145.29,6.5554]
[1723408283064,11.91252276,145.44,145.41,4.8139]
[1723408283294,4.8133,145.43,145.38,12.0369]
[1723408283475,32.7129,145.45,145.34,12.0404]
[1723408283675,4.813,145.44,145.34,12.0404]
[1723408283971,20.0,145.62,145.41,0.12549]
[1723408284169,34.2491393,145.52,145.39,6.5554]
[1723408284369,4.8123,145.46,145.35,0.12549]
[1723408284593,33.42,145.46,145.35,20.0]
[1723408284764,33.42,145.46,145.37,12.0378]
[1723408284969,33.42,145.46,145.35,20.0]
[1723408284970,0.8291393,145.52,145.44,12.0323]
[1723408285168,0.8291393,145.52,145.47,4.8119]
[1723408285593,0.8291393,145.52,145.45,4.8124]
[1723408285789,0.8291393,145.52,145.46,4.8121]
[1723408285991,5.6396393,145.52,145.44,16.8451]
[1723408286168,0.8291393,145.52,145.44,12.0323]
[1723408286372,4.811,145.5,145.44,12.0323]
[1723408286899,5.6395393,145.52,145.44,16.845]
[1723408287074,4.8115,145.49,145.42,4.8133]
[1723408287881,24.8108,145.51,145.43,4.8132]
[1723408288075,50.31296,145.5,145.43,4.8132]
[1723408288280,45.50196,145.5,145.41,4.8137]
[1723408288480,45.50196,145.5,145.4,20.0]
[1723408288683,0.12549,145.48,145.39,12.036]
[1723408288887,45.50196,145.48,145.39,12.036]
[1723408289091,0.50196,145.48,145.4,0.4138318]
[1723408289275,0.50196,145.48,145.43,4.8132]
[1723408289682,0.50196,145.48,145.39,12.036]
[1723408289901,0.50196,145.48,145.43,4.8132]
[1723408290673,5.31356,145.48,145.42,4.8135]
[1723408291183,0.50196,145.48,145.42,4.8135]
[1723408291698,0.50196,145.48,145.43,4.8132]
[1723408292002,0.37647,145.48,145.43,4.8132]
[1723408292184,7.4149393,145.52,145.43,4.8132]
[1723408292185,0.8291393,145.52,145.45,12.0309]
[1723408292386,0.8291393,145.52,145.43,1.37507475]
[1723408292387,0.8291393,145.52,145.5,4.8106]
[1723408292804,0.8291393,145.52,145.48,12.0288]
[1723408293482,0.8291393,145.52,145.49,4.8113]
[1723408293683,0.8291393,145.52,145.48,16.8404]
[1723408294004,0.8291393,145.52,145.46,4.812]
[1723408294186,0.8291393,145.52,145.44,12.0316]
[1723408294889,0.8291393,145.52,145.47,4.8116]
[1723408296203,0.8291393,145.52,145.49,4.8112]
[1723408296710,0.8291393,145.52,145.47,16.8416]
[1723408296912,0.8291393,145.52,145.48,4.8115]
[1723408297080,0.8291393,145.52,145.5,4.8109]
[1723408297488,0.8291393,145.52,145.51,4.8106]
[1723408298281,0.8291393,145.52,145.5,4.8109]
[1723408298509,0.8291393,145.52,145.45,18.1163]
[1723408298688,0.8291393,145.52,145.46,21.37378811]
[1723408299010,0.8291393,145.52,145.51,4.8106]
[1723408299223,0.8291393,145.52,145.51,16.8372]
[1723408299382,0.8291393,145.52,145.51,12.0266]
[1723408299584,0.8291393,145.52,145.48,4.8114]
[1723408301018,0.8291393,145.52,145.5,12.0274]
[1723408301205,0.8291393,145.52,145.51,6.18474294]
[1723408301731,0.8291393,145.52,145.51,4.8106]
[1723408304295,0.8291393,145.52,145.51,49.8106]
[1723408304621,0.8291393,145.52,145.51,49.93609]
[1723408304817,0.8291393,145.52,145.51,69.93609]
[1723408305199,0.8291393,145.52,145.51,70.31256]
[1723408307242,0.8291393,145.52,145.51,71.20079458]
[1723408308837,20.914,145.65,145.58,4.8081]
[1723408309003,0.37647,145.64,145.58,5.85388587]
[1723408309206,4.8057,145.66,145.58,1.04578587]
[1723408309506,40.7701393,145.67,145.58,1.04578587]
[1723408309507,4.8064,145.64,145.58,1.04578587]
[1723408309724,40.7701393,145.67,145.59,5.87647814]
[1723408309931,4.8064,145.64,145.58,4.8083]
[1723408310154,40.7701393,145.67,145.57,12.0213]
[1723408310643,40.7701393,145.67,145.6,4.8076]
[1723408310644,45.5757393,145.67,145.6,4.8076]
[1723408310936,4.8058,145.66,145.6,4.8076]
[1723408311545,4.8058,145.66,145.53,12.0242]
[1723408311546,33.42,145.61,145.53,12.0242]
[1723408311834,0.12549,145.6,145.49,12.0276]
[1723408312006,33.42,145.58,145.5,1.37382319]
[1723408312208,33.42,145.58,145.52,12.0256]
[1723408312439,33.42,145.58,145.48,12.0283]
[1723408312440,33.42,145.55,145.48,12.0283]
[1723408312611,45.50196,145.57,145.48,12.0283]
[1723408312938,6.0565,145.58,145.53,4.8099]
[1723408313231,6.0565,145.58,145.51,12.0266]
[1723408313232,6.0565,145.58,145.54,4.8094]
[1723408313447,22.6415,145.62,145.55,4.8091]
[1723408313610,22.6415,145.62,145.54,12.0238]
[1723408313803,36.0397,145.68,145.54,12.0238]
[1723408313804,0.8291393,145.67,145.59,0.12549]
[1723408314021,0.8291393,145.67,145.66,4.8057]
[1723408314534,0.8291393,145.67,145.63,12.0161]
[1723408314722,0.8291393,145.67,145.66,4.8057]
[1723408314926,0.8291393,145.67,145.63,12.0161]
[1723408314927,0.8291393,145.67,145.65,4.8058]
[1723408315234,0.8291393,145.67,145.66,16.8199]
[1723408315730,0.8291393,145.67,145.65,4.806]
[1723408315907,0.8291393,145.67,145.58,33.42]
[1723408315908,0.8291393,145.67,145.63,20.0]
[1723408316109,0.8291393,145.67,145.64,45.0]
[1723408316303,0.8291393,145.67,145.66,4.8057]
[1723408316734,0.8291393,145.67,145.64,12.0151]
[1723408317050,0.8291393,145.67,145.64,16.8214]
[1723408318333,0.8291393,145.67,145.63,24.8066]
[1723408318546,0.8291393,145.67,145.63,4.8066]
[1723408319209,0.8291393,145.67,145.61,20.0]
[1723408319210,0.8291393,145.67,145.65,4.8058]
[1723408319618,0.8291393,145.67,145.66,4.8057]
[1723408320220,0.8291393,145.67,145.64,12.0151]
[1723408320221,0.8291393,145.67,145.64,16.8211]
[1723408321043,0.8291393,145.67,145.64,12.0151]
[1723408321348,0.8291393,145.67,145.66,4.8057]
[1723408321643,0.8291393,145.67,145.64,12.0151]
[1723408321849,0.8291393,145.67,145.66,4.8057]
[1723408322728,0.8291393,145.67,145.66,49.93119]
[1723408322944,0.8291393,145.67,145.66,69.8057]
[1723408323543,0.8291393,145.67,145.66,24.8057]
[1723408323740,0.8291393,145.67,145.66,49.8057]
[1723408324044,0.8291393,145.67,145.66,4.8057]
[1723408325330,0.8291393,145.67,145.66,49.8057]
[1723408325647,0.8291393,145.67,145.66,4.8057]
[1723408326229,0.8291393,145.67,145.66,49.8057]
[1723408326733,0.8291393,145.67,145.66,4.8057]
[1723408326932,0.8291393,145.67,145.65,24.806]
[1723408327140,0.8291393,145.67,145.66,4.8057]
[1723408328445,0.8291393,145.67,145.66,49.8057]
[1723408328748,0.8291393,145.67,145.66,97.79668]
[1723408329047,0.8291393,145.67,145.66,69.8057]
[1723408329824,0.8291393,145.67,145.66,24.8057]
[1723408330027,0.8291393,145.67,145.66,4.8057]
[1723408330241,0.8291393,145.67,145.66,49.8057]
[1723408330455,0.8291393,145.67,145.66,69.8057]
[1723408331027,20.0,145.85,145.66,69.8057]
[1723408331028,0.8291393,145.81,145.67,6.5248]
[1723408331229,0.8291393,145.81,145.75,4.8024]
[1723408331542,5.6299393,145.81,145.76,4.8023]
[1723408331739,5.6299393,145.81,145.74,12.007]
[1723408331740,4.8012,145.8,145.74,12.007]
[1723408332070,5.6298393,145.81,145.75,4.8027]
[1723408332350,5.6298393,145.81,145.76,4.8023]
[1723408332550,0.8291393,145.81,145.76,12.0053]
[1723408332847,0.8291393,145.81,145.76,16.8076]
[1723408333027,5.6299393,145.81,145.76,12.0053]
[1723408333233,27.74,145.8,145.73,12.0085]
[1723408333553,32.5411,145.8,145.74,6.17499931]
[1723408333736,27.74,145.8,145.73,12.0085]
[1723408333932,0.8291393,145.81,145.73,12.0085]
[1723408334134,4.8011,145.8,145.74,4.803]
[1723408334552,5.6299393,145.81,145.75,4.8024]
[1723408335452,4.8014,145.79,145.73,16.8117]
[1723408335957,5.6301393,145.81,145.73,12.0085]
[1723408336347,5.6301393,145.81,145.74,45.0]
[1723408336658,5.6301393,145.81,145.74,72.74]
[1723408337250,0.8291393,145.81,145.76,4.8023]
[1723408337435,0.8291393,145.81,145.77,13.37635065]
[1723408337641,0.8291393,145.81,145.78,4.8014]
[1723408337844,0.8291393,145.81,145.77,13.37635065]
[1723408337845,0.8291393,145.81,145.79,13.37448686]
[1723408338159,0.8291393,145.81,145.79,12.0029]
[1723408338334,0.8291393,145.81,145.76,18.5306]
[1723408338540,0.8291393,145.81,145.77,69.8019]
[1723408338754,0.8291393,145.81,145.77,24.8019]
[1723408338953,0.8291393,145.81,145.8,4.801]
[1723408339137,0.8291393,145.81,145.8,49.801]
[1723408339337,0.8291393,145.81,145.79,16.8045]
[1723408339534,0.8291393,145.81,145.77,20.0]
[1723408339760,0.8291393,145.81,145.77,24.802]
[1723408339966,0.8291393,145.81,145.76,12.0058]
[1723408340258,0.8291393,145.81,145.79,4.8013]
[1723408340464,0.8291393,145.81,145.79,4.8014]
[1723408341152,0.8291393,145.81,145.78,16.8054]
[1723408341340,0.8291393,145.81,145.77,4.802]
[1723408341553,0.8291393,145.81,145.8,4.801]
[1723408343663,0.8291393,145.81,145.8,99.16155142]
[1723408344049,0.8291393,145.81,145.78,16.8056]
[1723408344253,0.8291393,145.81,145.76,4.802]
[1723408344454,0.8291393,145.81,145.77,4.802]
[1723408344764,0.8291393,145.81,145.78,4.8016]
[1723408345143,5.6298393,145.81,145.75,16.8092]
[1723408345342,0.8291393,145.81,145.75,12.0066]
[1723408345678,0.8291393,145.81,145.78,4.8015]
[1723408345844,0.8291393,145.81,145.77,4.8019]
[1723408346042,4.8014,145.79,145.74,4.803]
[1723408346245,27.74,145.82,145.76,4.8023]
[1723408346460,27.74,145.82,145.75,1.37199378]
[1723408346461,0.5892702,145.79,145.75,16.8094]
[1723408347269,0.5892702,145.79,145.75,12.0068]
[1723408348970,4.8017,145.78,145.72,39.7491]
[1723408349156,0.5892702,145.79,145.73,4.8033]
[1723408349157,5.3906702,145.79,145.73,4.8033]
[1723408350057,0.5892702,145.79,145.74,1.37183135]
[1723408350268,0.5892702,145.79,145.74,13.37873135]